{"text_format":"1","workbook":"xlsx","n_sheets":2,"sheets":["Счет","Реализация"],"not_rendered":{"charts":0,"images":1,"macros":0,"external_links":0,"defined_names":3,"comments":0,"pivot_tables":0},"unopened":[],"bounds":{"document_bytes":16777216,"sheet_cells":100000,"rows_first":2000,"rows_last":500,"rows_between":2000,"halvings":0,"cell_chars":16384,"cell_head_chars":4096},"cells_cut":0,"cells_raw":0,"read":"whole","date_system":"1900"}

{"sheet":"Счет","index":0,"n_rows":15,"n_cols":10,"rows_kept":15,"cut":false,"hidden":false,"merged":[]}
[]
[null,null,null,"Реестр выписанных счетов"]
["Поставщик","Склад отгрузки","Номенклатура","Покупатель","Дата счета","Номер счета","Кол-во, тн","Отгружено, тн ","СТАТУС ОТГРУЗКИ","правильный результат Статуса"]
["Омега, ООО","склад №1","Товар 1","Сирота Надежда Петровна, ФО-П","2021-10-06","0000033",44,{"$f":"SUMIF(Реализация!$F$4:$G$90,F4,Реализация!$G$4:$G$90)","v":44},{"$f":"IF(A4=\"\",\"-\",IF(E4=\"\",\"запланировано\",IF(H4=0,\"Не отгружено\",IF(H4>G4,\"Перегружено\",IF(G4=H4,\"Отгружено полностью\",\"Отгружено частично\")))))","v":"Отгружено полностью"},"Отгружено полностью"]
["Прогрес, ООО","склад №2","Товар 2","Колос, ТД ООО","2021-10-07","0000034",22,{"$f":"SUMIF(Реализация!$F$4:$G$90,F5,Реализация!$G$4:$G$90)","v":22},{"$f":"IF(A5=\"\",\"-\",IF(E5=\"\",\"запланировано\",IF(H5=0,\"Не отгружено\",IF(H5>G5,\"Перегружено\",IF(G5=H5,\"Отгружено полностью\",\"Отгружено частично\")))))","v":"Отгружено полностью"},"Отгружено полностью"]
["Прогрес, ООО","склад №1","Товар 3","Проминь, ООО","2021-10-07","0000035",5,{"$f":"SUMIF(Реализация!$F$4:$G$90,F6,Реализация!$G$4:$G$90)","v":6},"Перегружено","Перегружено"]
["Прогрес, ООО","склад №1","Товар 5","Искра, ПП","2021-10-08","0000036",11,{"$f":"SUMIF(Реализация!$F$4:$G$90,F7,Реализация!$G$4:$G$90)","v":0},"Не отгружено","Не отгружено"]
["Омега, ООО","склад №2","Товар 4","Агростен, ООО","2021-10-08","0000037",20,{"$f":"SUMIF(Реализация!$F$4:$G$90,F8,Реализация!$G$4:$G$90)","v":0},"Не отгружено","Не отгружено"]
["Омега, ООО","склад №2","Товар 8","Новый Уржавец , ООО","2021-10-08","0000038",3,{"$f":"SUMIF(Реализация!$F$4:$G$90,F9,Реализация!$G$4:$G$90)","v":3},"Отгружено полностью","Отгружено полностью"]
["Прогрес, ООО","склад №1","Товар 6","Заря, ООО","2021-10-08","0000039",5,{"$f":"SUMIF(Реализация!$F$4:$G$90,F10,Реализация!$G$4:$G$90)","v":0},"Не отгружено","Не отгружено"]
["Прогрес, ООО","склад №1","Товар 7","Новый Уржавец , ООО","2021-10-11","0000040",34,{"$f":"SUMIF(Реализация!$F$4:$G$90,F11,Реализация!$G$4:$G$90)","v":0},"Не отгружено","Не отгружено"]
["Омега, ООО","склад №2","Товар 2","Новый Уржавец , ООО","2021-10-11","0000041",64,{"$f":"SUMIF(Реализация!$F$4:$G$90,F12,Реализация!$G$4:$G$90)","v":0},"Не отгружено","Не отгружено"]
["Омега, ООО","склад №2","Товар 1","Сирота Надежда Петровна, ФО-П","2021-10-11","0000044",22.1,{"$f":"SUMIF(Реализация!$F$4:$G$90,F13,Реализация!$G$4:$G$90)","v":0},"Не отгружено","Не отгружено"]
["Омега, ООО","склад №2","Товар 7","Колос, ТД ООО","2021-10-12","0000045",11,{"$f":"SUMIF(Реализация!$F$4:$G$90,F14,Реализация!$G$4:$G$90)","v":10},"Отгружено частично","Не отгружено"]
["Омега, ООО","склад №2","Товар 8","Искра, ПП","2021-10-12","0000046",66,{"$f":"SUMIF(Реализация!$F$4:$G$90,F15,Реализация!$G$4:$G$90)","v":0},"Не отгружено","Не отгружено"]

{"sheet":"Реализация","index":1,"n_rows":10,"n_cols":7,"rows_kept":10,"cut":false,"hidden":false,"merged":[]}
[]
[null,null,null,null,"Учет реализации"]
["Дата отгрузки","Поставщик","Склад","Номенклатура","Покупатель","Номер счета","Кол-во, ОТГРУЖЕННОГО товара тн"]
["2021-10-08","Омега, ООО","склад №1","Товар 1","Сирота Надежда Петровна, ФО-П","0000033",24]
["2021-10-08","Прогрес, ООО","склад №2","Товар 2","Колос, ТД ООО","0000034",10]
["2021-10-09","Прогрес, ООО","склад №2","Товар 2","Колос, ТД ООО","0000034",12]
["2021-10-10","Прогрес, ООО","склад №1","Товар 3","Проминь, ООО","0000035",6]
["2021-10-11","Омега, ООО","склад №2","Товар 8","Новый Уржавец , ООО","0000038",3]
["2021-10-14","Омега, ООО","склад №2","Товар 7","Колос, ТД ООО","0000045",10]
["2021-10-15","Омега, ООО","склад №1","Товар 1","Сирота Надежда Петровна, ФО-П","0000033",20]